fUSD/lending_fUSD_20240910
["ID","MTS","AMOUNT","RATE_DAILY","PERIOD"]
[337706555,1725979839896,-1144.85026627,0.00012034,2]
[337706558,1725979839908,-470.73973373,0.00012034,2]
[337706560,1725979839919,-129.38175224,0.00012034,2]
[337706562,1725979839931,-1599.06824776,0.00012034,2]
[337706564,1725979839942,-400.1704429,0.00012034,2]
[337706567,1725979839958,-285.07990763,0.00012034,2]
[337706569,1725979839972,-1056.21625525,0.00012034,2]
[337706571,1725979839984,-1148.44339422,0.00012034,2]
[337706573,1725979839994,-500.0,0.00012034,2]
[337706575,1725979840004,-833.19,0.00012034,2]
[337706577,1725979840014,-1190.5431612,0.00012034,2]
[337706579,1725979840024,-62752.3265262,0.00012034,2]
[337706581,1725979840034,-309.223061,0.00012034,2]
[337706583,1725979840046,-1374.1938823,0.00012034,2]
[337706585,1725979840055,-613.19,0.00012035,2]
[337706587,1725979840064,-500.0,0.00012035,2]
[337706589,1725979840073,-500.0,0.00012035,2]
[337706590,1725979840082,-1317.72,0.00012035,2]
[337706593,1725979840092,-1232.15,0.00012035,2]
[337706594,1725979840102,-816.71,0.00012035,2]
[337706596,1725979840111,-500.0,0.00012035,2]
[337706598,1725979840119,-500.0,0.00012035,2]
[337706600,1725979840129,-500.0,0.00012035,2]
[337706602,1725979840138,-545.62,0.00012035,2]
[337706604,1725979840147,-1114.18,0.00012035,2]
[337706606,1725979840158,-500.0,0.00012035,2]
[337706609,1725979840170,-666.0,0.00012035,2]
[337706611,1725979840179,-500.0,0.00012035,2]
[337706637,1725979840422,-500.0,0.00012035,2]
[337706640,1725979840445,-516.0,0.00012035,2]
[337706642,1725979840456,-1616.44,0.00012035,2]
[337706645,1725979840467,-500.0,0.00012035,2]
[337706647,1725979840477,-248.10700587,0.00012035,2]
[337706649,1725979840487,-2164.21,0.00012035,2]
[337706651,1725979840496,-500.0,0.00012035,2]
[337706653,1725979840506,-500.0,0.00012035,2]
[337706655,1725979840517,-1262.82,0.00012035,2]
[337706657,1725979840526,-500.0,0.00012035,2]
[337706659,1725979840537,-500.0,0.00012035,2]
[337706661,1725979840546,-500.0,0.00012035,2]
[337706663,1725979840555,-500.0,0.00012035,2]
[337706665,1725979840564,-1104.93,0.00012035,2]
[337706667,1725979840574,-415.2136506,0.00012035,2]
[337706669,1725979840583,-500.0,0.00012035,2]
[337706671,1725979840593,-230.30584697,0.00012035,2]
[337706673,1725979840608,-500.0,0.00012035,2]
[337706675,1725979840618,-640.17,0.00012035,2]
[337706677,1725979840627,-500.0,0.00012035,2]
[337706679,1725979840644,-500.0,0.00012035,2]
[337706682,1725979840659,-1085.04,0.00012035,2]
[337706684,1725979840669,-500.0,0.00012035,2]
[337706686,1725979840681,-737.06,0.00012035,2]
[337706688,1725979840692,-500.0,0.00012035,2]
[337706690,1725979840705,-500.0,0.00012035,2]
[337706692,1725979840716,-1153.22,0.00012035,2]
[337706694,1725979840726,-749.86,0.00012035,2]
[337706696,1725979840737,-598.98,0.00012035,2]
[337706698,1725979840747,-628.87,0.00012035,2]
[337706700,1725979840757,-500.0,0.00012035,2]
[337706702,1725979840769,-1466.21,0.00012035,2]
[337706704,1725979840779,-798.97,0.00012035,2]
[337706706,1725979840792,-500.0,0.00012035,2]
[337706708,1725979840803,-615.46,0.00012035,2]
[337706710,1725979840813,-566.23,0.00012035,2]
[337706713,1725979840824,-777.53,0.00012035,2]
[337706715,1725979840834,-2778.17,0.00012035,2]
[337706717,1725979840844,-526.44,0.00012035,2]
[337706719,1725979840854,-3943.96,0.00012035,2]
[337706721,1725979840865,-3780.17,0.00012035,2]
[337706723,1725979840876,-711.78,0.00012035,2]
[337706725,1725979840886,-5320.65,0.00012035,2]
[337706727,1725979840896,-1405.62,0.00012035,2]
[337706728,1725979840910,-500.0,0.00012035,2]
[337706729,1725979840920,-32886.51,0.00012035,2]
[337706730,1725979840930,-660.02,0.00012035,2]
[337706731,1725979840941,-6875.3,0.00012035,2]
[337706732,1725979840951,-500.0,0.00012036,2]
[337706733,1725979840961,-500.0,0.00012036,2]
[337706734,1725979840971,-151.0,0.00012036,2]
[337706735,1725979840981,-150.99,0.00012036,2]
[337706736,1725979840991,-3831.02,0.00012036,2]
[337706737,1725979841000,-499.99,0.00012036,2]
[337706738,1725979841010,-5969.03,0.00012036,2]
[337706739,1725979841020,-361.17,0.00012036,2]
[337706740,1725979841030,-660.21,0.00012036,2]
[337706741,1725979841047,-8063.5585591,0.00012038,2]
[337706743,1725979841056,-291.70826,0.00012038,2]
[337706744,1725979841067,-682.47166,0.00012041,2]
[337706746,1725979841077,-201.141614,0.00012041,2]
[337706748,1725979841087,-691.927154,0.00012041,2]
[337706750,1725979841098,-478657.36553998,0.00012041,2]
[337706753,1725979841108,-151.0,0.00012041,2]
[337706754,1725979841118,-152.0,0.00012042,4]
[337706757,1725979841128,-295.4285584,0.0001208,2]
[337706759,1725979841138,-171.02536145,0.0001208,2]
[337706761,1725979841147,-212.0,0.0001213,2]
[337706763,1725979841157,-160.27861692,0.00012173,2]
[337706765,1725979841169,-200.26107202,0.00012173,2]
[337706767,1725979841179,-500.0,0.00012173,2]
[337706769,1725979841190,-160.25121957,0.00012173,2]
[337706771,1725979841201,-500.0,0.00012173,2]
[337706773,1725979841211,-500.0,0.00012173,2]
[337706775,1725979841221,-755.0,0.00012179,2]
[337706777,1725979841230,-120652.85649625,0.0001218,2]
[337706779,1725979841245,-147162.53149581,0.0001218,2]
[337706781,1725979841255,-471948.7527737,0.0001218,2]
[337706788,1725979841316,596.91,0.00026,60]
[337706795,1725979841373,2955.96,0.00026,60]
[337706804,1725979841444,1346.64,0.00026,60]
[337706810,1725979841499,2955.96,0.00026,60]
[337706819,1725979841574,596.91,0.00026,60]
[337706829,1725979841670,2955.96,0.00026,60]
[337706841,1725979841780,1346.64,0.00026,60]
[337706850,1725979841857,596.91,0.00026,60]
[337706857,1725979841922,2955.96,0.00026,60]
[337706864,1725979841980,1346.64,0.00026,60]
[337706872,1725979842044,2955.96,0.00026,60]
[337706878,1725979842101,596.91,0.00026,60]
[337706886,1725979842163,1346.64,0.00026,60]
[337706893,1725979842222,596.91,0.00026,60]
[337706900,1725979842280,2955.96,0.00026,60]
[337706906,1725979842340,1346.64,0.00026,60]
[337706923,1725979842494,596.91,0.00026,60]
[337706940,1725979842655,2955.96,0.00026,60]
[337706948,1725979842722,596.91,0.00026,60]
[337706955,1725979842783,1346.64,0.00026,60]
[337706962,1725979842849,2955.96,0.00026,60]
[337706969,1725979842908,596.91,0.00026,60]
[337706977,1725979842977,1346.64,0.00026,60]
[337706984,1725979843043,2955.96,0.00026,60]
[337706991,1725979843099,596.91,0.00026,60]
[337706993,1725979843112,-560.52652316,0.0001218,2]
[337706995,1725979843124,-202970.20874483,0.0001218,2]
[337706997,1725979843136,-582.15028,0.0001218,2]
[337707000,1725979843148,-491.47347684,0.0001218,2]
[337707003,1725979843167,-14673.34270739,0.0001218,2]
[337707005,1725979843179,-2865.25,0.0001218,2]
[337707114,1725979844398,-3572.7675236,0.0001218,2]
[337707121,1725979844453,2955.96,0.00026,60]
[337707127,1725979844509,596.91,0.00026,60]
[337707134,1725979844564,449.42662487,0.00026,60]
[337707261,1725979845752,-1356.88,0.0001218,2]
[337707279,1725979845935,-369.15130269,0.0001218,2]
[337707287,1725979845999,-2091.0265999,0.0001218,2]
[337707293,1725979846054,-72628.9603897,0.0001218,2]
[337707296,1725979846068,-384.50318454,0.0001218,2]
[337707298,1725979846079,-2364.3,0.0001218,2]
[337708209,1725979856855,150.0,0.00011585,2]
[337708210,1725979856880,174.24499998,0.00011585,2]
[337708211,1725979876755,3000.0,0.00014101,25]
[337708212,1725979891665,150.0,0.00011973,2]
[337708213,1725979895515,500.0,0.00010265,2]
[337708214,1725979902328,16920.5807,0.00011935,2]
[337708215,1725979923986,500.0,0.00010265,2]
[337708216,1725979937667,205.92,0.00011337,2]
[337708217,1725979941111,8744.36761652,0.000119,2]
[337708218,1725979944166,1905.10661486,0.00011934,2]
[337708219,1725979944513,859.891993,0.00012,2]
[337708220,1725979947867,3000.0,0.00014101,25]
[337708221,1725979950309,292.97,0.00011584,2]
[337708222,1725979961613,419.51829656,0.0001199,2]
[337708223,1725979961975,801.5619,0.00011935,2]
[337708224,1725979968707,500.0,0.00011585,3]
[337708225,1725980009897,305.06,0.00012,2]
[337708226,1725980046783,14749.2522,0.00011934,2]
[337708227,1725980068346,201.76,9.674e-05,2]
[337708228,1725980068750,201.76,0.00011938,2]
[337708229,1725980097165,1004.06,0.00012,2]
[337708230,1725980184061,2600.0,0.00012002,2]
[337708231,1725980314261,328.0,0.00011258,2]
[337708232,1725980353294,4312.08,0.00011233,2]
[337708233,1725980484871,250.0,0.00011233,2]
[337708234,1725980523569,292.97,0.00011233,2]
[337708235,1725980571279,181.58,9.315e-05,2]
[337708236,1725980571508,181.58,0.00011579,2]
[337708237,1725980572294,156.68,0.00010959,2]
[337708238,1725980609246,316.409829,0.00012,2]
[337708239,1725980625145,235.27,0.00011226,2]
[337708240,1725980646585,500.0,0.0001197,2]
[337708241,1725980697837,1196.650414,0.00012,2]
[337708242,1725980757586,750.0,0.00011,2]
[337708243,1725980864164,737.6,0.00011233,2]
[337708259,1725981031881,-150.74,0.00012038,2]
[337708260,1725981031891,-161.804,0.00012058,2]
[337708261,1725981031899,-150.0,0.00012058,2]
[337708262,1725981031909,-150.75966,0.00012058,2]
[337708263,1725981031918,-150.74,0.00012062,2]
[337708264,1725981031927,-359.0,0.0001207,2]
[337708265,1725981031936,-150.74,0.0001207,2]
[337708266,1725981031945,-150.74,0.00012071,2]
[337708267,1725981031955,-2783.36451068,0.00012072,2]
[337708268,1725981031966,-804.53368081,0.00012072,2]
[337708269,1725981031977,-230.87180851,0.00012072,2]
[337708270,1725981031988,-106.14732805,0.00012072,2]
[337708271,1725981031999,-4118.27119374,0.00012072,2]
[337708272,1725981032014,-653.26372546,0.00012072,2]
[337708273,1725981032025,-2739.81784511,0.00012072,2]
[337708274,1725981032034,-1010.15815274,0.00012079,2]
[337708275,1725981032096,-2708.43184726,0.00012079,2]
[337708276,1725981032106,-668.60399409,0.0001208,2]
[337708277,1725981032118,-5925.12780591,0.0001208,2]
[337708278,1725981032127,-150.0,0.00012081,2]
[337708279,1725981032136,-3651.37,0.00012081,2]
[337708280,1725981032146,-36859.4396,0.00012082,2]
[337708281,1725981032155,-499.99,0.00012082,2]
[337708282,1725981032165,-2794.02884929,0.00012083,2]
[337708283,1725981032176,-1422.4903,0.00012083,2]
[337708284,1725981032185,-1198.95,0.00012116,2]
[337708285,1725981032195,-513.4193,0.00012119,2]
[337708286,1725981032204,-3798.19,0.00012141,2]
[337708287,1725981032213,-473.83,0.00012164,14]
[337708288,1725981032222,-3824.32,0.00012166,2]
[337708289,1725981032231,-655.0721,0.00012167,2]
[337708290,1725981032240,-2794.02884929,0.00012174,2]
[337708291,1725981032249,-4904.091,0.00012175,2]
[337708292,1725981032261,-6547.9849011,0.00012175,2]
[337708293,1725981032270,-2107.7388099,0.00012175,2]
[337708295,1725981032279,-30056.105963,0.00012175,2]
[337708297,1725981032288,-150.01,0.00012179,2]
[337708299,1725981032297,-646.65374584,0.00012179,2]
[337708301,1725981032306,-500.0,0.00012179,2]
[337708303,1725981032317,-291.84775025,0.00012179,2]
[337708305,1725981032326,-500.0,0.00012179,2]
[337708307,1725981032335,-500.0,0.00012179,2]
[337708309,1725981032344,-500.0,0.00012179,2]
[337708310,1725981032355,-427.43301741,0.00012179,2]
[337708312,1725981032364,-16205.2831401,0.0001218,2]
[337708314,1725981032374,-66159.78086924,0.0001218,2]
[337708317,1725981032385,-2073.79125364,0.0001218,2]
[337708319,1725981032396,-564.72,0.0001218,2]
[337708325,1725981037925,-3018.31577805,0.0001218,2]
[337708326,1725981037938,-2757.58727979,0.0001218,2]
[337708327,1725981037950,-1284.02209181,0.0001218,2]
[337708328,1725981037962,-3962.55749776,0.0001218,2]
[337708329,1725981037975,-2497.15239399,0.0001218,2]
[337708330,1725981037986,-313.27,0.0001218,2]
[337708331,1725981037999,-254.99999,0.0001218,2]
[337708332,1725981038016,-1857.89130649,0.0001218,2]
[337708333,1725981038027,-827.68936257,0.0001218,2]
[337708334,1725981038039,-888.51999758,0.0001218,2]
[337708335,1725981038051,-1893.1272692,0.0001218,2]
[337708336,1725981038062,-659.75132017,0.0001218,2]
[337708337,1725981038076,-740.29498549,0.0001218,2]
[337708338,1725981038093,-597.24,0.0001218,2]
[337708339,1725981038107,-500.0,0.0001218,2]
[337708340,1725981038118,-432.58582148,0.0001218,2]
[337708341,1725981038129,-2069.46943833,0.0001218,2]
[337708342,1725981038139,-155.0,0.00012183,2]
[337708343,1725981038149,-150.0,0.00012183,2]
[337708344,1725981038159,-150.309,0.00012183,2]
[337708345,1725981038168,-150.0,0.00012183,2]
[337708346,1725981038178,-682.47166,0.00012191,2]
[337708347,1725981038188,-691.927154,0.00012191,2]
[337708348,1725981038198,-150.0,0.00012193,2]
[337708349,1725981038207,-5860.0,0.00012193,2]
[337708350,1725981038219,-1145.0,0.00012193,2]
[337708351,1725981038230,-9309.0,0.00012193,2]
[337708352,1725981038240,-150.0,0.00012197,2]
[337708353,1725981038250,-252.866,0.00012197,2]
[337708354,1725981038261,-150.0,0.00012197,2]
[337708355,1725981038271,-624.0,0.00012197,2]
[337708356,1725981038280,-900.80771534,0.00012197,2]
[337708357,1725981038295,-360.19228466,0.00012197,2]
[337708358,1725981038305,-26.39571534,0.00012197,2]
[337708359,1725981038318,-1520.60428466,0.00012197,2]
[337708361,1725981038329,-447.0,0.00012197,2]
[337708363,1725981038340,-931.0,0.00012197,2]
[337708365,1725981038351,-810.0,0.00012197,2]
[337708367,1725981038363,-557.0,0.00012197,2]
[337708369,1725981038372,-150.0,0.00012197,2]
[337708371,1725981038381,-662.492,0.00012197,2]
[337708373,1725981038391,-1901.0,0.00012197,2]
[337708376,1725981038403,-805.0,0.00012197,2]
[337708378,1725981038412,-3343.0,0.00012197,2]
[337708380,1725981038421,-253.396,0.00012197,2]
[337708382,1725981038431,-1921.0,0.00012197,2]
[337708384,1725981038441,-1189.5687,0.00012209,2]
[337708386,1725981038452,-2794.02884929,0.00012265,2]
[337708388,1725981038463,-654.0,0.00012308,2]
[337708390,1725981038473,-212.0,0.0001233,2]
[337708392,1725981038483,-654.0,0.00012335,2]
[337708394,1725981038492,-682.47166,0.00012342,2]
[337708396,1725981038504,-691.927154,0.00012342,2]
[337708399,1725981038515,-2794.02884929,0.00012355,2]
[337708401,1725981038526,-654.0,0.00012363,2]
[337708403,1725981038536,-654.0,0.0001239,2]
[337708405,1725981038546,-157.28,0.00012395,2]
[337708407,1725981038558,-405.53,0.000124,2]
[337708409,1725981038569,-654.0,0.00012418,2]
[337708412,1725981038581,-654.0,0.00012445,2]
[337708414,1725981038590,-2794.02884929,0.00012446,2]
[337708416,1725981038599,-1100.0,0.0001247,2]
[337708418,1725981038608,-191.05118717,0.0001247,2]
[337708420,1725981038617,-654.0,0.00012472,2]
[337708422,1725981038626,-682.47166,0.00012492,2]
[337708423,1725981038636,-691.927154,0.00012492,2]
[337708425,1725981038646,-654.0,0.000125,2]
[337708427,1725981038655,-314.98,0.000125,2]
[337708429,1725981038665,-996.92,0.000125,2]
[337708431,1725981038674,-654.0,0.00012527,2]
[337708433,1725981038684,-212.0,0.0001253,2]
[337708435,1725981038693,-2794.02884929,0.00012537,2]
[337708437,1725981038703,-654.0,0.00012555,2]
[337708439,1725981038712,-205.91,0.00012561,2]
[337708441,1725981038722,-700.0,0.0001257,2]
[337708443,1725981038732,-700.0,0.0001257,2]
[337708445,1725981038742,-500.0,0.0001257,2]
[337708447,1725981038752,-152.0,0.00012577,5]
[337708449,1725981038761,-654.0,0.00012582,2]
[337708451,1725981038772,-654.0,0.00012609,2]
[337708453,1725981038782,-2794.02884929,0.00012628,2]
[337708455,1725981038792,-235.27,0.00012629,2]
[337708457,1725981038801,-654.0,0.00012637,2]
[337708459,1725981038811,-737.6,0.00012637,2]
[337708461,1725981038820,-201.141614,0.00012643,2]
[337708463,1725981038830,-682.47166,0.00012643,2]
[337708465,1725981038839,-691.927154,0.00012643,2]
[337708466,1725981038849,-654.0,0.00012664,2]
[337708469,1725981038860,-328.0,0.00012665,2]
[337708471,1725981038870,-191.05118717,0.00012685,2]
[337708473,1725981038879,-654.0,0.00012692,2]
[337708475,1725981038889,-2794.02884929,0.00012718,2]
[337708477,1725981038899,-654.0,0.00012719,2]
[337708478,1725981038908,-212.0,0.0001272,2]
[337708480,1725981038918,-300.73,0.0001272,2]
[337708482,1725981038928,-654.0,0.00012746,2]
[337708484,1725981038937,-1000.0,0.00012748,3]
[337708486,1725981038946,-654.0,0.00012774,2]
[337708488,1725981038957,-654.0,0.00012801,2]
[337708490,1725981038966,-823.16250711,0.00012809,2]
[337708493,1725981038979,-1970.86634218,0.00012809,2]
[337708495,1725981038988,-654.0,0.00012829,2]
[337708497,1725981038997,-654.0,0.00012856,2]
[337708499,1725981039011,-500.0,0.00012877,2]
[337708501,1725981039021,-654.0,0.00012883,2]
[337708503,1725981039030,-360.58783052,0.00012891,2]
[337708504,1725981039039,-1344.31329684,0.000129,2]
[337708506,1725981039051,-2185.46653046,0.000129,2]
[337708509,1725981039062,-317.14776361,0.000129,2]
[337708588,1725981039822,-1194.636,0.00012193,2]
[337708591,1725981039832,-291.41455522,0.000129,2]
[337708593,1725981039842,-378.72457237,0.000129,2]
[337708599,1725981039899,-1655.88423,0.000129,2]
[337708602,1725981039911,-240.96711132,0.000129,2]
[337708604,1725981039921,-191.05118717,0.000129,2]
[337708606,1725981039931,-340.49301647,0.000129,2]
[337708607,1725981039940,-273.66589373,0.000129,2]
[337708610,1725981039951,-106.11983933,0.000129,2]
[337708612,1725981039961,-654.0,0.00012911,2]
[337708614,1725981039970,-212.0,0.0001292,2]
[337708616,1725981039980,-659.25460283,0.00012938,2]
[337708618,1725981039990,-700.0,0.0001297,2]
[337708620,1725981039999,-400.0,0.0001297,2]
[337708622,1725981040011,-151.0,0.0001297,2]
[337708624,1725981040021,-500.0,0.00012973,2]
[337708626,1725981040031,-201.10166491,0.0001299,2]
[337708628,1725981040040,-150.83,0.0001299,2]
[337708630,1725981040051,-150.83,0.0001299,2]
[337708632,1725981040060,-150.83,0.0001299,2]
[337708634,1725981040070,-150.83,0.0001299,2]
[337708636,1725981040080,-150.83,0.0001299,2]
[337708638,1725981040090,-150.83,0.0001299,2]
[337708640,1725981040099,-150.83,0.0001299,2]
[337708642,1725981040112,-150.83,0.0001299,2]
[337708644,1725981040121,-151.0,0.00012991,2]
[337708646,1725981040131,-151.0,0.00012991,2]
[337708648,1725981040140,-151.102225,0.00012991,2]
[337708650,1725981040150,-5870.0850116,0.00012991,2]
[337708652,1725981040160,-5192.185122,0.00012991,2]
[337708654,1725981040170,-4514.2852324,0.00012991,2]
[337708656,1725981040179,-3836.3853429,0.00012991,2]
[337708658,1725981040189,-3158.4854533,0.00012991,2]
[337708660,1725981040199,-1889.5287914,0.00012991,2]
[337708662,1725981040209,-1671.3187729,0.00012991,2]
[337708664,1725981040219,-1453.1087543,0.00012991,2]
[337708666,1725981040228,-1234.8987358,0.00012991,2]
[337708668,1725981040238,-1016.6887173,0.00012991,2]
[337708670,1725981040247,-19512.90533902,0.00012991,2]
[337708673,1725981040267,-7431.55158688,0.00012991,2]
[337708675,1725981040277,-23832.8078887,0.00012991,2]
[337708677,1725981040286,-20721.1588516,0.00012991,2]
[337708679,1725981040296,-17609.5098144,0.00012991,2]
[337708681,1725981040307,-14497.8607773,0.00012991,2]
[337708683,1725981040318,-169.76067246,0.00012999,2]
[337708685,1725981040329,-761.0,0.00013,2]
[337708687,1725981040339,-82760.80706666,0.00013,2]
[337708689,1725981040350,-31093.1616788,0.00013,2]
[337708691,1725981040365,-1539.41274403,0.00013,2]
[337708693,1725981040375,-727.7991429,0.00013,2]
[337708695,1725981040387,-55347.29200001,0.00013,2]
[337708698,1725981040398,-250.0,0.00013,2]
[337708700,1725981040414,-147530.31771102,0.00013,2]
[337708702,1725981040424,-201442.17710921,0.00013,2]
[337708941,1725981042865,-4139.27659578,0.00013,2]
[337708946,1725981042906,-194509.26232314,0.00013,2]
[337708948,1725981042918,-283.52134636,0.00013,2]
[337708954,1725981042965,-6619.6675863,0.00013,2]
[337708956,1725981042977,-6729.0335601,0.00013,2]
[337709044,1725981043786,-591.33566378,0.00013,2]
[337709046,1725981043798,-517.61463644,0.00013,2]
[337709538,1725981083653,250.0,0.00011233,2]
[337709539,1725981115560,258.83,0.00011233,2]
[337709541,1725981130401,500.0,0.00010265,2]
[337709542,1725981177502,152.0,0.00011774,3]
[337709543,1725981238822,177.21,0.00010396,2]
[337709546,1725981575775,160.41433334,0.00011233,2]
[337709547,1725981575799,89.58566666,0.00011233,2]
[337709548,1725981578025,5000.0,0.00012,2]
[337709549,1725981595480,1291.16665,0.00012,2]
[337709550,1725981595521,160.41433334,7.781e-05,7]
[337709551,1725981705469,150.0,0.00011233,2]
[337709552,1725981705492,108.87,0.00011233,2]
[337709553,1725981792974,168.34,9.787e-05,2]
[337709554,1725981906322,150.0,0.00011688,2]
[337709557,1725982079771,150.0,0.00011233,2]
[337709558,1725982079791,100.0,0.00011233,2]
[337709565,1725982123700,150.0,0.00010959,2]
[337709566,1725982123723,67.42,0.00010959,2]
[337709567,1725982160331,-304.0,0.0001202,2]
[337709568,1725982160365,-205.0,0.0001202,2]
[337709569,1725982160395,-180.05683783,0.0001202,2]
[337709570,1725982169151,150.0,0.00011944,2]
[337709571,1725982169176,101.39949522,0.00011944,2]
[337709572,1725982223207,150.0,0.00011725,2]
[337709573,1725982223231,42.93,0.00011725,2]
[337709581,1725982232023,-491.64,0.0001202,2]
[337709582,1725982232035,-184.892045,0.00012041,2]
[337709583,1725982232044,-168.34,0.00012051,2]
[337709584,1725982232053,-491.64,0.00012054,2]
[337709585,1725982232063,-491.64,0.00012063,2]
[337709586,1725982232072,-491.64,0.00012063,2]
[337709587,1725982232081,-491.64,0.00012063,2]
[337709588,1725982232090,-375.27142221,0.00012063,2]
[337709589,1725982232102,-116.36857779,0.00012063,2]
[337709590,1725982232112,-3752.24,0.00012073,2]
[337709591,1725982232122,-557.44,0.00012077,2]
[337709592,1725982232131,-491.64,0.00012231,2]
[337709593,1725982232140,-491.64,0.00012231,2]
[337709594,1725982232149,-482.77,0.00012241,2]
[337709595,1725982232159,-3474.96784732,0.00012241,2]
[337709596,1725982232170,-277.35215268,0.00012241,2]
[337709597,1725982232180,-491.64,0.00012283,2]
[337709598,1725982232190,-491.64,0.00012283,2]
[337709599,1725982232199,-150.0,0.00012292,2]
[337709600,1725982232209,-553.0,0.00012293,2]
[337709601,1725982232219,-534.71556482,0.00012293,2]
[337709602,1725982232230,-1366.28443518,0.00012293,2]
[337709603,1725982232239,-248.0,0.00012293,2]
[337709604,1725982232249,-267.12368963,0.00012293,2]
[337709605,1725982232261,-537.87631037,0.00012293,2]
[337709606,1725982232274,-1119.0,0.00012293,2]
[337709607,1725982232285,-1921.0,0.00012293,2]
[337709608,1725982232300,-662.7550113,0.00012293,2]
[337709609,1725982232312,-2680.2449887,0.00012293,2]
[337709610,1725982232322,-1079.0,0.00012293,2]
[337709611,1725982232332,-624.0,0.00012293,2]
[337709612,1725982232342,-1255.001,0.00012293,2]
[337709613,1725982232353,-389.75536413,0.00012293,2]
[337709614,1725982232366,-563.10986677,0.00012293,2]
[337709615,1725982232378,-593.1347691,0.00012293,2]
[337709616,1725982232393,-5860.0,0.00012293,2]
[337709617,1725982232403,-150.0,0.00012293,2]
[337709618,1725982232413,-161.804,0.00012293,2]
[337709619,1725982232422,-364.97,0.000123,2]
[337709620,1725982232433,-305.64,0.000125,2]
[337709621,1725982232443,-1006.72,0.000125,2]
[337709622,1725982232452,-150.0,0.00012552,2]
[337709623,1725982232464,-152.0,0.00012577,4]
[337709624,1725982232473,-258.83,0.00012637,2]
[337709625,1725982232483,-153.22,0.00012735,2]
[337709626,1725982232492,-415.99495571,0.00012771,2]
[337709627,1725982232502,-150.0,0.00012796,2]
[337709628,1725982232511,-150.0,0.00012856,2]
[337709629,1725982232524,-500.0,0.00012877,2]
[337709630,1725982232534,-176.22845629,0.000129,2]
[337709631,1725982232544,-172.529219,0.000129,2]
[337709632,1725982232553,-3327.38182423,0.000129,2]
[337709633,1725982232563,-207.18950648,0.000129,2]
[337709634,1725982232572,-595.98162893,0.000129,2]
[337709635,1725982232581,-150.0,0.00012904,2]
[337709636,1725982232591,-150.0,0.00012941,2]
[337709637,1725982232600,-157.28,0.00012947,2]
[337709638,1725982232610,-500.0,0.00012973,2]
[337709639,1725982232620,-200.0,0.00012973,2]
[337709640,1725982232631,-500.0,0.00012973,2]
[337709641,1725982232642,-150.0,0.00012982,2]
[337709642,1725982232653,-151.07,0.0001299,2]
[337709643,1725982232664,-530.69267,0.00012999,2]
[337709644,1725982232674,-6896.9955058,0.00012999,2]
[337709645,1725982232686,-1613.61036034,0.00012999,2]
[337709646,1725982232696,-150.51745403,0.00012999,2]
[337709647,1725982232707,-707.0,0.00013,2]
[337709648,1725982232716,-243606.11508095,0.00013,2]
[337709649,1725982232737,-2423.19949662,0.00013,2]
[337709650,1725982232749,-562.21440665,0.00013,2]
[337709651,1725982232782,-1354.61142599,0.00013,2]
[337709652,1725982232793,-784.3221489,0.00013,2]
[337709653,1725982238093,-1145.0,0.00012293,2]
[337709654,1725982238103,-620.0,0.00013,2]
[337709655,1725982238206,-1850.0,0.00013,2]